[Event "Ramco Open 2018"]
[Site "Virudhunagar"]
[Date "2018.12.02"]
[Round "8"]
[White "Prasannaa.s"]
[Black "Muthaiah AL"]
[Result "0-1"]
[ECO "D04"]
[WhiteElo "2218"]
[BlackElo "2408"]
[Annotator "NA"]
[PlyCount "118"]
[EventDate "2018.11.29"]
[EventType "swiss"]
[EventCountry "IND"]
[SourceTitle "playchess.com"]
[Source "ChessBase"]
[SourceQuality "1"]
[TimeControl "5400+30"]

{[%evp 8,115,22,32767,32767,21,32767,0,32767,32767,32767,32767,32767,32767,32767,32767,-8,-33,32767,-200,-113,-193,-180,32767,32767,-40,-32,-57,-40,-49,32767,32767,32767,32767,32767,32767,-25,-24,-20,-20,32767,-15,32767,32767,-23,32767,32767,32767,0,-54,-69,-61,32767,-69,-36,-39,-30,-66,32767,32767,32767,-86,-47,32767,-138,32767,-163,-171,32767,32767,-179,-221,-146,32767,32767,-230,-209,-168,-243,-256,-291,-283,-607,-597,-778,32767,-874,-703,-790,32767,-1082,32767,-1076,32767,-29965,-12841,32767,32767,32767,32767,32767,32767,-12846,32767,-29980,-29980,-29981,-29981,32767,-29982]} 1. d4 {[%emt 0:02:38]} d5 {[%emt 0:00:40]} 2. Nf3 {[%emt 0:00:35]} Nf6 {[%emt 0:00:10]} 3. e3 {[%emt 0:00:05]} g6 {[%emt 0:01:19]} 4. b3 {[%emt 0:04:11]} Bg7 {[%emt 0:02:01]} 5. Bb2 {[%emt 0:00:07] LiveBook: 53 Games} O-O {[%emt 0:00:11]} 6. Nbd2 {[%emt 0:00:10]} Nbd7 {[%emt 0:05:18]} 7. Bd3 {[%emt 0:01:08]} c5 {[%emt 0:00:18]} 8. O-O {[%emt 0:00:15]} b6 {[%emt 0:01:10] D04: Colle System} 9. dxc5 $146 {[%emt 0:10:58]} ({Predecessor:} 9. c4 Bb7 10. Qe2 cxd4 11. exd4 dxc4 12. bxc4 Re8 13. Rad1 Qc7 14. Rfe1 Rac8 15. Ne5 Nxe5 16. dxe5 Nd7 17. Nb3 Nc5 18. Nxc5 Qxc5 {1-0 (31) Nakamura,H (2786)-Caruana,F (2802) chess.com INT 2017}) 9... Nxc5 {[%emt 0:00:52]} 10. b4 {[%emt 0:00:18]} Nce4 {[%emt 0:09:22]} 11. c4 {[%emt 0:01:09]} Bb7 {[%emt 0:10:57]} 12. Rc1 {[%emt 0:04:13]} Rc8 {[%emt 0:01:33]} 13. Nb3 $2 {[%emt 0:02:47] [#]} (13. Qb3 $11) 13... dxc4 {[%emt 0:10:55]} (13... Nxf2 $1 $19 {[%mdl 512]} 14. Rxf2 dxc4 {[%mdl 64] Discovered Attack} 15. Bxf6 Bxf6 16. Bxc4 Rxc4 17. Qxd8 Rxc1+ 18. Nxc1 Rxd8) 14. Bxc4 {[%emt 0:01:08] [#]} (14. Rxc4 $17 Rxc4 15. Bxc4) 14... Qxd1 $1 {[%emt 0:02:11]} 15. Rfxd1 {[%emt 0:01:41]} Nd6 {[%emt 0:00:05]} 16. Bd3 {[%emt 0:02:50]} Nd5 {[%emt 0:01:41]} 17. Bxg7 {[%emt 0:00:04]} Kxg7 {[%emt 0:00:09]} 18. a3 $1 {[%emt 0:00:16]} Nc3 {[%emt 0:00:17]} 19. Rd2 {[%emt 0:05:56]} Ncb5 {[%emt 0:04:02]} 20. a4 {[%emt 0:03:13]} Rxc1+ {[%emt 0:00:39]} 21. Nxc1 {[%emt 0:00:03]} Rc8 {[%emt 0:02:54]} 22. Rc2 $1 {[%emt 0:00:37]} Nc3 {[%emt 0:00:06]} 23. a5 $1 {[%emt 0:00:40]} Bxf3 {[%emt 0:00:54]} 24. gxf3 {[%emt 0:00:26]} Nd5 {[%emt 0:00:19]} 25. Rxc8 {[%emt 0:00:51]} Nxc8 {[%emt 0:00:02]} 26. Na2 {[%emt 0:03:38]} Nd6 {[%emt 0:02:26]} 27. Be4 {[%emt 0:00:16]} Nc7 {[%emt 0:05:49]} 28. Bc6 {[%emt 0:00:37]} bxa5 {[%emt 0:04:42]} 29. bxa5 {[%emt 0:00:05]} Nc4 {[%emt 0:01:44]} 30. a6 $1 {[%emt 0:00:01]} Na5 {[%emt 0:00:07]} 31. Bb7 $1 {[%emt 0:00:39]} Kf6 {[%emt 0:01:46]} 32. Bc8 {[%emt 0:01:17]} Ke5 {[%emt 0:00:48]} 33. Nc3 {[%emt 0:00:20]} f6 {[%emt 0:00:29]} 34. Kf1 {[%emt 0:04:56]} Nb3 {[%emt 0:01:15]} 35. Ne4 {[%emt 0:03:13] [#]} Kd5 $1 {[%emt 0:00:34]} 36. Bb7+ {[%emt 0:02:07] [#]} Kc4 $1 {[%emt 0:00:44]} 37. Ke2 {[%emt 0:00:35]} Nc5 {[%emt 0:01:15]} 38. Nxc5 {[%emt 0:00:02]} Kxc5 {[%emt 0:00:07]} 39. f4 {[%emt 0:01:48]} Kb6 {[%emt 0:03:50]} 40. Kf3 {[%emt 0:00:34]} Nxa6 {[%emt 0:01:51]} 41. Bd5 {[%emt 0:00:12]} Nb4 {[%emt 0:00:47]} 42. Bg8 {[%emt 0:00:04] [#]} h6 $1 {[%emt 0:00:08]} 43. Bh7 {[%emt 0:00:03]} a5 {[%emt 0:02:34]} 44. Bxg6 {[%emt 0:00:53]} a4 {[%emt 0:00:03]} 45. Kg4 {[%emt 0:02:40]} a3 {[%emt 0:01:13]} 46. Bb1 {[%emt 0:00:02]} Kc5 {[%emt 0:00:59]} ({Not} 46... a2 {[#]} 47. Bxa2 $1 {[%mdl 512]} Nxa2 48. Kh5 $11) 47. Kh5 {[%emt 0:01:18]} Kc4 {[%emt 0:00:21]} ({Not} 47... a2 {[#]} 48. Bxa2 $1 {[%mdl 512]} Nxa2 49. Kxh6 $11) 48. Kxh6 {[%emt 0:02:06]} Kc3 {[%emt 0:00:19]} 49. h4 {[%emt 0:01:03]} Kb2 {[%emt 0:00:05]} ({Wrong is} 49... a2 $2 {[#]} 50. Bxa2 $1 {[%mdl 512]} Kd2 51. h5 $18) 50. h5 {[%emt 0:00:26]} Kxb1 {[%emt 0:00:07]} 51. Kg7 {[%emt 0:00:03]} a2 {[%emt 0:00:07]} 52. h6 {[%emt 0:00:02]} a1=Q {[%emt 0:00:07]} 53. h7 {[%emt 0:00:02]} f5+ {[%emt 0:00:09]} 54. Kg8 {[%emt 0:00:06]} Nd3 {[%emt 0:01:45]} 55. f3 {[%emt 0:01:36]} Kc2 {[%emt 0:00:20]} 56. h8=Q {[%emt 0:00:16]} Qxh8+ {[%emt 0:00:07]} 57. Kxh8 {[%emt 0:00:03]} Kd2 {[%emt 0:00:17]} 58. e4 {[%emt 0:00:04]} fxe4 {[%emt 0:00:06]} 59. fxe4 {[%emt 0:00:04]} Nxf4 {[%emt 0:00:08]} 0-1

[Event "Ramco Open 2018"]
[Site "Virudhunagar"]
[Date "2018.12.02"]
[Round "8"]
[White "Syed Anwar, Shazuli"]
[Black "Rao J., Malleswara"]
[Result "1-0"]
[ECO "A49"]
[WhiteElo "2174"]
[BlackElo "1988"]
[Annotator "NA"]
[PlyCount "103"]
[EventDate "2018.11.29"]
[EventType "swiss"]
[EventCountry "IND"]
[SourceTitle "playchess.com"]
[Source "ChessBase"]
[SourceQuality "1"]
[TimeControl "5400+30"]

1. Nf3 {[%emt 0:00:00]} Nf6 {[%emt 0:00:33]} 2. g3 {[%emt 0:00:00]} g6 {[%emt 0:02:06]} 3. b3 {[%emt 0:00:08]} Bg7 {[%emt 0:00:06]} 4. Bb2 {[%emt 0:00:06]} d6 {[%emt 0:00:21]} 5. d4 {[%emt 0:00:21]} O-O {[%emt 0:00:45]} 6. Bg2 {[%emt 0:00:58]} c6 {[%emt 0:01:51]} 7. O-O {[%emt 0:00:11]} a5 {[%emt 0:01:59]} 8. a4 {[%emt 0:00:14]} Na6 {[%emt 0:02:25]} 9. Nbd2 {[%emt 0:00:40] LiveBook: 18 Games A49: 1 d4 Nf6 2 Nf3 g6 3 g3: Anti-King's Indian systems} h6 $146 {[%emt 0:03:35]} ({Predecessor:} 9... d5 10. Re1 Bf5 11. Nh4 {½-½ (11) Pavlov,S (2502)-Manolache,M (2505) Corund 2017}) 10. e4 {[%emt 0:00:29]} d5 {[%emt 0:10:44]} 11. Ne5 {[%emt 0:03:44]} dxe4 {[%emt 0:03:41]} 12. Nxe4 {[%emt 0:00:10]} Nxe4 {[%emt 0:01:28]} 13. Bxe4 {[%emt 0:00:09]} Bxe5 {[%emt 0:01:41]} 14. dxe5 {[%emt 0:00:08]} Qxd1 {[%emt 0:00:20]} 15. Rfxd1 {[%emt 0:01:11]} Nc5 {[%emt 0:05:21]} 16. Bf3 {[%emt 0:02:49]} Bf5 {[%emt 0:02:38]} 17. Rd2 {[%emt 0:02:32]} Rfd8 {[%emt 0:01:06]} 18. Rad1 {[%emt 0:00:07]} Rxd2 {[%emt 0:01:14]} 19. Rxd2 {[%emt 0:00:02]} Kf8 {[%emt 0:01:08]} 20. g4 {[%emt 0:08:08]} Be6 {[%emt 0:03:02]} 21. Bd4 {[%emt 0:00:12]} Nd7 {[%emt 0:03:08]} 22. Bc3 {[%emt 0:00:34]} Nb6 {[%emt 0:02:11]} 23. h3 {[%emt 0:02:19]} Bd5 {[%emt 0:04:28]} 24. Bd4 {[%emt 0:11:18]} Bxf3 {[%emt 0:08:14]} 25. Bxb6 {[%emt 0:00:00]} Ke8 {[%emt 0:04:15]} 26. c4 {[%emt 0:00:00]} h5 {[%emt 0:05:22]} 27. Rd4 {[%emt 0:01:29]} hxg4 {[%emt 0:00:19]} 28. hxg4 {[%emt 0:00:05]} c5 {[%emt 0:05:53]} 29. Bxc5 {[%emt 0:06:07]} Ra6 {[%emt 0:00:23]} 30. Kh2 {[%emt 0:03:20]} f6 {[%emt 0:05:24]} 31. exf6 {[%emt 0:00:34]} Rxf6 {[%emt 0:01:20]} 32. Kg3 {[%emt 0:00:48]} Bc6 {[%emt 0:08:37]} 33. Rd3 {[%emt 0:00:10]} Re6 {[%emt 0:00:29]} 34. f3 {[%emt 0:03:08]} Kf7 {[%emt 0:02:26]} 35. Kf2 $16 {[%emt 0:05:36]} Rf6 {[%emt 0:01:54]} 36. Ke2 {[%emt 0:00:26]} e5 {[%emt 0:00:52]} 37. Re3 {[%emt 0:04:21]} g5 {[%emt 0:00:47]} 38. Bb6 {[%emt 0:00:52]} e4 {[%emt 0:00:25]} 39. fxe4 {[%emt 0:00:08]} Bd7 {[%emt 0:00:16]} 40. Bxa5 {[%emt 0:00:23]} Bxg4+ {[%emt 0:00:08]} 41. Kd2 {[%emt 0:02:21]} Rf3 {[%emt 0:01:55]} 42. Bb6 {[%emt 0:00:37]} Ke6 {[%emt 0:02:05]} 43. a5 {[%emt 0:00:41]} Bh5 {[%emt 0:01:07]} 44. b4 {[%emt 0:01:24]} Rxe3 {[%emt 0:00:20]} 45. Kxe3 {[%emt 0:00:02]} g4 {[%emt 0:02:35]} 46. Bc7 {[%emt 0:00:10]} Kd7 {[%emt 0:00:12]} 47. Bg3 {[%emt 0:00:13]} Bf7 {[%emt 0:00:14]} 48. Kd4 {[%emt 0:00:06]} Bg6 {[%emt 0:00:55]} 49. b5 {[%emt 0:00:03]} Bf7 {[%emt 0:00:24]} 50. c5 {[%emt 0:01:44]} Kc8 {[%emt 0:00:27]} 51. c6 {[%emt 0:00:39]} bxc6 {[%emt 0:01:04]} 52. bxc6 {[%emt 0:00:05]} 1-0

[Event "Ramco Open 2018"]
[Site "Virudhunagar"]
[Date "2018.12.02"]
[Round "8"]
[White "Anilkumar, O.T."]
[Black "Kunal, M.."]
[Result "0-1"]
[ECO "B13"]
[WhiteElo "2025"]
[BlackElo "2233"]
[Annotator "NA"]
[PlyCount "108"]
[EventDate "2018.11.29"]
[EventType "swiss"]
[EventCountry "IND"]
[SourceTitle "playchess.com"]
[Source "ChessBase"]
[SourceQuality "1"]
[TimeControl "5400+30"]

1. e4 {[%emt 0:00:00]} c6 {[%emt 0:00:27]} 2. d4 {[%emt 0:00:18]} d5 {[%emt 0:00:06]} 3. exd5 {[%emt 0:00:10]} cxd5 {[%emt 0:00:06]} 4. Bd3 {[%emt 0:00:05]} Nc6 {[%emt 0:00:09]} 5. c3 {[%emt 0:00:23]} Qc7 {[%emt 0:03:16] LiveBook: 799 Games} 6. Nf3 {[%emt 0:00:37]} Bg4 {[%emt 0:00:13]} 7. Be3 {[%emt 0:00:43] B13: Caro-Kann: Exchange Variation and Panov-Botvinnik Attack} (7. O-O e6 8. h3 Bh5 9. Re1 Bd6 10. Nbd2 Nf6 11. Nf1 O-O 12. Bg5 Rab8 13. Qe2 Rfe8 14. Qe3 Bg6 15. Ne5 Nxe5 16. dxe5 {½-½ (48) Bocharov,I (2534)-Ovetchkin,R (2540) Cheliabinsk 2017}) 7... e6 {[%emt 0:00:21]} 8. Nbd2 {[%emt 0:00:04]} Bd6 {[%emt 0:00:10]} 9. Qa4 $146 {[%emt 0:00:29]} ({Predecessor:} 9. h3 Bh5 10. O-O Nf6 11. Qc2 O-O 12. Rfe1 Rac8 13. a3 Bg6 14. Bxg6 hxg6 15. Bg5 {½-½ (15) Hug,M (2257)-Dittmar,P (2382) Bad Woerishofen 2009}) 9... Nge7 {[%emt 0:00:44]} 10. h3 {[%emt 0:05:42]} Bh5 {[%emt 0:01:28]} 11. O-O {[%emt 0:01:24]} Nf5 {[%emt 0:06:56]} 12. Rfe1 {[%emt 0:04:15]} Nxe3 {[%emt 0:00:07]} 13. Rxe3 {[%emt 0:00:02]} Bf4 {[%emt 0:00:48]} 14. Ree1 {[%emt 0:00:01]} O-O-O {[%emt 0:01:54]} 15. Be2 {[%emt 0:03:40]} g5 {[%emt 0:00:17]} 16. Nf1 {[%emt 0:00:07]} Rhg8 {[%emt 0:19:02]} (16... Bxf3 $5 17. Bxf3 h5 $11) 17. Ne5 {[%emt 0:00:28]} Bxe2 {[%emt 0:01:44]} 18. Nxc6 {[%emt 0:04:28]} Qxc6 {[%emt 0:00:06]} 19. Qxc6+ {[%emt 0:00:06]} bxc6 {[%emt 0:00:02]} 20. Rxe2 {[%emt 0:00:01]} h5 {[%emt 0:00:35]} 21. g3 {[%emt 0:00:55]} Bd6 {[%emt 0:00:08]} 22. Rc1 {[%emt 0:01:17]} Kd7 {[%emt 0:00:23]} 23. c4 {[%emt 0:00:25]} Rb8 {[%emt 0:00:12]} 24. b3 {[%emt 0:01:10]} a5 {[%emt 0:01:23]} 25. Rc3 {[%emt 0:04:09] [#]} a4 $1 {[%emt 0:00:26]} 26. cxd5 {[%emt 0:03:54]} cxd5 {[%emt 0:00:07]} 27. Nd2 {[%emt 0:05:16]} Rgc8 {[%emt 0:09:15]} 28. Rxc8 {[%emt 0:01:59]} Rxc8 {[%emt 0:00:48]} 29. bxa4 {[%emt 0:02:26]} Ra8 {[%emt 0:03:06]} 30. Nb3 {[%emt 0:00:06]} Rxa4 {[%emt 0:00:04]} 31. Kf1 {[%emt 0:01:08]} g4 {[%emt 0:00:40]} 32. hxg4 {[%emt 0:01:12]} hxg4 {[%emt 0:00:05]} 33. Ke1 {[%emt 0:00:31]} f6 {[%emt 0:01:40]} 34. Rc2 {[%emt 0:00:11]} e5 {[%emt 0:02:01]} 35. Ke2 {[%emt 0:03:05]} Ke6 {[%emt 0:01:28]} 36. Kd3 {[%emt 0:00:14]} Ra8 {[%emt 0:01:00]} 37. Ke3 {[%emt 0:01:42]} Ra7 {[%emt 0:00:10]} 38. Kd3 {[%emt 0:00:22]} e4+ {[%emt 0:01:38]} 39. Ke2 {[%emt 0:00:17]} f5 {[%emt 0:00:03]} 40. Ke3 {[%emt 0:01:01]} f4+ {[%emt 0:01:59]} 41. gxf4 {[%emt 0:00:09]} Kf5 {[%emt 0:00:07]} 42. Ke2 {[%emt 0:00:19]} Bxf4 {[%emt 0:00:29]} 43. Nc5 {[%emt 0:02:47]} Rh7 {[%emt 0:04:45]} 44. Rc3 {[%emt 0:01:37]} Rh2 {[%emt 0:02:03]} 45. Kf1 {[%emt 0:00:02] [#]} e3 {[%emt 0:07:08]} (45... g3 $1 $19 {[%mdl 512]} 46. fxg3 {[#]} Bc1 $1 {[%mdl 512]}) 46. fxe3 {[%emt 0:00:07]} Bd6 {[%emt 0:00:04]} 47. Nb7 {[%emt 0:05:10]} Bb4 {[%emt 0:00:15]} 48. Rb3 {[%emt 0:02:35]} Be7 {[%emt 0:00:04]} 49. Nc5 $1 {[%emt 0:04:11]} Rxa2 {[%emt 0:13:25]} 50. Rb7 {[%emt 0:10:26]} Bxc5 {[%emt 0:02:17]} 51. dxc5 $11 {[%emt 0:00:01]} Ke4 {[%emt 0:00:05]} 52. Rb4+ {[%emt 0:18:40]} Kf3 {[%emt 0:01:27]} 53. Rf4+ {[%emt 0:01:21]} Kxe3 {[%emt 0:00:13]} 54. Rxg4 {[%emt 0:00:01]} Kf3 {[%emt 0:00:18]} 0-1